fUST/lending_fUST_20250630
["ID","MTS","AMOUNT","RATE_DAILY","PERIOD"]
[368681040,1751293846471,-460.0,0.0001988,2]
[368681041,1751293846482,-460.0,0.0001988,2]
[368681042,1751293846491,-703.57,0.0001988,2]
[368681043,1751293846501,-460.0,0.0001988,2]
[368681044,1751293846511,-460.0,0.0001988,2]
[368681045,1751293846643,-2381.82,0.0001988,2]
[368681046,1751293846697,-460.0,0.0001988,2]
[368681047,1751293846707,-3080.07,0.0001988,2]
[368681048,1751293846717,-512.18,0.0001988,2]
[368681049,1751293846726,-460.0,0.0001988,2]
[368681050,1751293846735,-460.0,0.0001988,2]
[368681051,1751293846744,-669.49,0.0001988,2]
[368681052,1751293846755,-787.84,0.0001988,2]
[368681053,1751293846766,-460.0,0.00019881,2]
[368681054,1751293846775,-1462.97,0.00019881,2]
[368681055,1751293846784,-3983.7,0.00019881,2]
[368681056,1751293846794,-1280.81,0.00019881,2]
[368681057,1751293846803,-460.0,0.00019881,2]
[368681058,1751293846812,-518.22,0.00019881,2]
[368681059,1751293846822,-460.0,0.00019882,2]
[368681060,1751293846835,-1091.0,0.00019883,2]
[368681061,1751293846844,-420.0,0.0001989,2]
[368681062,1751293846854,-1091.0,0.0001991,2]
[368681063,1751293846863,-1091.0,0.00019938,2]
[368681064,1751293846874,-1091.0,0.00019965,2]
[368681065,1751293846883,-414.0,0.00019987,2]
[368681066,1751293846893,-1091.0,0.00019992,2]
[368681067,1751293846902,-5000.0,0.00019996,2]
[368681068,1751293846914,-93375.4432198,0.00019999,2]
[368681069,1751293846925,-1091.0,0.0002002,2]
[368681070,1751293846934,-500.0,0.0002004,2]
[368681071,1751293846943,-1091.0,0.00020047,2]
[368681072,1751293846953,-1091.0,0.00020075,2]
[368681073,1751293846963,-1091.0,0.00020102,2]
[368681074,1751293846973,-3174.29951476,0.00020107,2]
[368681075,1751293846982,-1091.0,0.00020129,2]
[368681076,1751293846991,-460.0,0.00020152,2]
[368681077,1751293847000,-460.0,0.00020152,2]
[368681078,1751293847010,-1311.28,0.00020152,2]
[368681079,1751293847019,-282.02506922,0.00020153,2]
[368681080,1751293847029,-460.0,0.00020153,2]
[368681081,1751293847038,-479.93,0.00020153,2]
[368681082,1751293847048,-460.0,0.00020153,2]
[368681083,1751293847057,-460.0,0.00020153,2]
[368681084,1751293847067,-460.0,0.00020153,2]
[368681085,1751293847076,-2366.77,0.00020153,2]
[368681086,1751293847086,-460.0,0.00020153,2]
[368681087,1751293847095,-460.0,0.00020153,2]
[368681088,1751293847105,-2143.09,0.00020153,2]
[368681089,1751293847114,-460.0,0.00020153,2]
[368681090,1751293847123,-460.0,0.00020153,2]
[368681091,1751293847132,-460.0,0.00020153,2]
[368681092,1751293847142,-460.0,0.00020153,2]
[368681093,1751293847151,-1813.65,0.00020153,2]
[368681094,1751293847160,-460.0,0.00020153,2]
[368681095,1751293847169,-668.08,0.00020153,2]
[368681096,1751293847179,-460.0,0.00020153,2]
[368681097,1751293847189,-460.0,0.00020153,2]
[368681098,1751293847199,-2801.94,0.00020153,2]
[368681099,1751293847208,-1102.05,0.00020153,2]
[368681100,1751293847218,-460.0,0.00020153,2]
[368681101,1751293847228,-460.0,0.00020153,2]
[368681102,1751293847238,-460.0,0.00020153,2]
[368681103,1751293847247,-460.0,0.00020153,2]
[368681104,1751293847258,-253.5219042,0.00020153,2]
[368681107,1751293848203,-460.0,0.00018235,2]
[368681108,1751293848212,-460.0,0.00018235,2]
[368681109,1751293848221,-584.25323158,0.00018407,2]
[368681110,1751293848231,-460.0,0.00018509,2]
[368681111,1751293848241,-460.0,0.00018509,2]
[368681112,1751293848250,-554.09318642,0.00018783,2]
[368681113,1751293848260,-4043.19842784,0.000189,2]
[368681114,1751293848272,-3957.19247713,0.000189,2]
[368681115,1751293848283,-902.91726016,0.000189,2]
[368681116,1751293848534,-16096.69183487,0.000189,2]
[368681117,1751293848543,-5577.9243266,0.00019448,2]
[368681118,1751293848557,-19422.0756734,0.00019448,2]
[368681119,1751293848567,-1076.9580958,0.00020153,2]
[368681120,1751293848577,-460.0,0.00020153,2]
[368681121,1751293848587,-460.0,0.00020153,2]
[368681122,1751293848599,-460.0,0.00020154,2]
[368681123,1751293848610,-460.0,0.00020154,2]
[368681124,1751293848620,-460.0,0.00020154,2]
[368681125,1751293848631,-566.8,0.00020154,2]
[368681126,1751293848641,-460.0,0.00020154,2]
[368681127,1751293848652,-460.0,0.00020154,2]
[368681128,1751293848661,-624.25,0.00020154,2]
[368681129,1751293848671,-485.87,0.00020154,2]
[368681130,1751293848683,-460.0,0.00020154,2]
[368681131,1751293848693,-460.0,0.00020154,2]
[368681132,1751293848703,-460.0,0.00020154,2]
[368681133,1751293848712,-1378.23,0.00020154,2]
[368681134,1751293848722,-460.0,0.00020154,2]
[368681135,1751293848732,-460.0,0.00020154,2]
[368681136,1751293848742,-703.57,0.00020154,2]
[368681137,1751293848752,-460.0,0.00020154,2]
[368681138,1751293848762,-460.0,0.00020154,2]
[368681139,1751293848771,-2381.82,0.00020154,2]
[368681140,1751293848781,-460.0,0.00020154,2]
[368681141,1751293848791,-3080.07,0.00020154,2]
[368681142,1751293848801,-460.0,0.00020154,2]
[368681143,1751293848811,-460.0,0.00020154,2]
[368681144,1751293848821,-512.18,0.00020154,2]
[368681145,1751293848832,-669.49,0.00020154,2]
[368681146,1751293848844,-787.84,0.00020154,2]
[368681147,1751293848854,-460.0,0.00020155,2]
[368681148,1751293848864,-1462.97,0.00020155,2]
[368681149,1751293848873,-3983.7,0.00020155,2]
[368681150,1751293848885,-1280.81,0.00020155,2]
[368681151,1751293848895,-460.0,0.00020155,2]
[368681152,1751293848905,-518.22,0.00020155,2]
[368681153,1751293848915,-150.39772877,0.00020156,2]
[368681154,1751293848925,-1091.0,0.00020157,2]
[368681155,1751293848934,-500.0,0.00020159,2]
[368681156,1751293848944,-500.0,0.00020159,2]
[368681157,1751293848953,-372.19197128,0.00020159,2]
[368681158,1751293848963,-500.0,0.00020159,2]
[368681159,1751293848972,-500.0,0.00020159,2]
[368681160,1751293848983,-500.0,0.00020159,2]
[368681161,1751293848993,-439.91620789,0.00020159,2]
[368681162,1751293849003,-500.0,0.00020159,2]
[368681163,1751293849012,-500.0,0.00020159,2]
[368681164,1751293849021,-500.0,0.00020159,2]
[368681165,1751293849031,-500.0,0.00020159,2]
[368681166,1751293849040,-500.0,0.00020159,2]
[368681167,1751293849050,-500.0,0.00020159,2]
[368681168,1751293849060,-500.0,0.00020159,2]
[368681169,1751293849069,-500.0,0.00020159,2]
[368681170,1751293849078,-500.0,0.00020159,2]
[368681171,1751293849088,-500.0,0.00020159,2]
[368681172,1751293849098,-500.0,0.00020159,2]
[368681173,1751293849108,-306.7009076,0.00020159,2]
[368681174,1751293849118,-387.27432969,0.00020159,2]
[368681175,1751293849129,-1500.0,0.0002016,2]
[368681176,1751293849138,-1000.0,0.0002016,2]
[368681177,1751293849149,-1091.0,0.00020184,2]
[368681178,1751293849158,-280.70585,0.00020187,2]
[368681179,1751293849168,-500.0,0.00020198,2]
[368681180,1751293849178,-1091.0,0.00020212,2]
[368681181,1751293849188,-1091.0,0.00020239,2]
[368681182,1751293849198,-429.0,0.00020243,2]
[368681183,1751293849208,-1091.0,0.00020266,2]
[368681184,1751293849218,-215.0738,0.00020269,2]
[368681185,1751293849228,-1091.0,0.00020294,2]
[368681186,1751293849239,-1101.0,0.00020321,2]
[368681187,1751293849248,-3174.29951476,0.00020348,3]
[368681188,1751293849257,-257.0,0.00020359,2]
[368681189,1751293849266,-429.0,0.00020388,2]
[368681190,1751293849276,-1000.0,0.00020423,5]
[368681191,1751293849287,-460.0,0.00020426,2]
[368681192,1751293849296,-460.0,0.00020426,2]
[368681193,1751293849306,-1311.28,0.00020426,2]
[368681194,1751293849315,-460.0,0.00020427,2]
[368681195,1751293849325,-479.93,0.00020427,2]
[368681196,1751293849334,-460.0,0.00020427,2]
[368681197,1751293849344,-379.71497975,0.00020427,2]
[368681198,1751293849354,-460.0,0.00020427,2]
[368681199,1751293849363,-2366.77,0.00020427,2]
[368681200,1751293849373,-460.0,0.00020427,2]
[368681201,1751293849382,-460.0,0.00020427,2]
[368681202,1751293849392,-2143.09,0.00020427,2]
[368681203,1751293849402,-460.0,0.00020427,2]
[368681204,1751293849412,-460.0,0.00020427,2]
[368681205,1751293849422,-460.0,0.00020427,2]
[368681206,1751293849432,-460.0,0.00020427,2]
[368681207,1751293849442,-1813.65,0.00020427,2]
[368681208,1751293849452,-460.0,0.00020427,2]
[368681209,1751293849461,-668.08,0.00020427,2]
[368681210,1751293849471,-460.0,0.00020427,2]
[368681211,1751293849480,-460.0,0.00020427,2]
[368681212,1751293849490,-2801.94,0.00020427,2]
[368681213,1751293849500,-847.15389154,0.00020427,2]
[368681214,1751293849627,-254.89610846,0.00020427,2]
[368681215,1751293849637,-174.66389154,0.00020427,2]
[368681216,1751293849778,-159.75550757,0.00020427,2]
[368681217,1751293849788,-460.0,0.00020427,2]
[368681218,1751293849798,-460.0,0.00020427,2]
[368681219,1751293849808,-460.0,0.00020427,2]
[368681220,1751293849818,-1330.48,0.00020427,2]
[368681221,1751293849828,-460.0,0.00020427,2]
[368681222,1751293849842,-460.0,0.00020427,2]
[368681223,1751293849852,-160.73355546,0.00020428,2]
[368681224,1751293849862,-460.0,0.00020428,2]
[368681225,1751293849873,-566.8,0.00020428,2]
[368681226,1751293849883,-460.0,0.00020428,2]
[368681227,1751293849892,-624.25,0.00020428,2]
[368681228,1751293849902,-485.87,0.00020428,2]
[368681229,1751293849913,-460.0,0.00020428,2]
[368681230,1751293849923,-460.0,0.00020428,2]
[368681231,1751293849932,-460.0,0.00020428,2]
[368681232,1751293849942,-1043.17637549,0.00020428,2]
[368681233,1751293849954,-335.05362451,0.00020428,2]
[368681234,1751293849964,-460.0,0.00020428,2]
[368681235,1751293849973,-460.0,0.00020428,2]
[368681236,1751293849983,-703.57,0.00020428,2]
[368681237,1751293849993,-460.0,0.00020428,2]
[368681238,1751293850002,-460.0,0.00020428,2]
[368681239,1751293850013,-2381.82,0.00020428,2]
[368681240,1751293850023,-460.0,0.00020428,2]
[368681241,1751293850033,-3080.07,0.00020428,2]
[368681242,1751293850043,-460.0,0.00020428,2]
[368681243,1751293850052,-460.0,0.00020428,2]
[368681244,1751293850062,-512.18,0.00020428,2]
[368681245,1751293850071,-669.49,0.00020428,2]
[368681246,1751293850081,-787.84,0.00020428,2]
[368681247,1751293850090,-460.0,0.00020429,2]
[368681248,1751293850100,-3983.7,0.00020429,2]
[368681249,1751293850109,-185.727034,0.00020429,2]
[368681282,1751294038690,19454.1326688,0.00017292,2]
[368681283,1751294038721,3000.69582682,0.00017292,2]
[368681284,1751294038749,2445.17150438,0.00017292,2]
[368681286,1751294061444,272.379244,0.00017687,2]
[368681287,1751294061967,236.91986581,0.00017688,2]
[368681293,1751294363480,169.38984388,0.00017687,2]
[368681297,1751294631257,177.77739777,0.00017921,2]
[368681301,1751294744093,252.635265,0.00013699,2]
[368681302,1751294753542,879.1238231,0.00017371,2]
[368681649,1751294852024,1329.0,0.00015,2]
[368682034,1751295031964,-755.667,0.00018131,2]
[368682035,1751295031974,-13.07879197,0.00018131,2]
[368682036,1751295031989,-293.06294558,0.00018131,2]
[368682037,1751295032000,-781.937274,0.00018131,2]
[368682038,1751295032016,-577.62098845,0.00018131,2]
[368682039,1751295032025,-300.0,0.00018231,2]
[368682040,1751295032035,-1200.0,0.00018231,2]
[368682041,1751295032044,-460.0,0.00018232,2]
[368682042,1751295032053,-460.0,0.00018232,2]
[368682043,1751295032062,-1632.9,0.00018232,2]
[368682044,1751295032071,-460.0,0.00018232,2]
[368682045,1751295032080,-460.0,0.00018232,2]
[368682046,1751295032090,-460.0,0.00018232,2]
[368682047,1751295032099,-460.0,0.00018232,2]
[368682048,1751295032108,-423.00755019,0.00018232,2]
[368682073,1751295037919,-36.99244981,0.00018232,2]
[368682074,1751295037929,-460.0,0.00018232,2]
[368682075,1751295037939,-140.72517904,0.00018232,2]
[368682076,1751295037950,-1347.64482096,0.00018232,2]
[368682077,1751295037959,-460.0,0.00018232,2]
[368682078,1751295037969,-1271.37,0.00018232,2]
[368682079,1751295037979,-460.0,0.00018232,2]
[368682080,1751295037991,-2582.23,0.00018232,2]
[368682081,1751295038000,-460.0,0.00018232,2]
[368682082,1751295038010,-460.0,0.00018232,2]
[368682083,1751295038019,-460.0,0.00018232,2]
[368682084,1751295038029,-688.78,0.00018232,2]
[368682085,1751295038039,-819.55,0.00018232,2]
[368682086,1751295038048,-460.0,0.00018232,2]
[368682087,1751295038057,-460.0,0.00018232,2]
[368682088,1751295038067,-460.0,0.00018232,2]
[368682089,1751295038076,-460.0,0.00018232,2]
[368682090,1751295038086,-460.0,0.00018232,2]
[368682091,1751295038095,-869.98,0.00018232,2]
[368682092,1751295038104,-460.0,0.00018232,2]
[368682093,1751295038114,-460.0,0.00018232,2]
[368682094,1751295038124,-460.0,0.00018232,2]
[368682095,1751295038132,-460.0,0.00018232,2]
[368682096,1751295038142,-460.0,0.00018232,2]
[368682097,1751295038151,-460.0,0.00018232,2]
[368682098,1751295038160,-154.32826156,0.00018232,2]
[368682099,1751295038170,-353.88504285,0.00018233,2]
[368682100,1751295038179,-436.84700513,0.00018233,2]
[368682101,1751295038189,-460.0,0.00018233,2]
[368682102,1751295038198,-460.0,0.00018233,2]
[368682103,1751295038208,-460.0,0.00018233,2]
[368682104,1751295038220,-460.0,0.00018233,2]
[368682105,1751295038230,-460.0,0.00018233,2]
[368682106,1751295038239,-460.0,0.00018233,2]
[368682107,1751295038248,-460.0,0.00018233,2]
[368682108,1751295038258,-460.0,0.00018233,2]
[368682109,1751295038267,-460.0,0.00018233,2]
[368682110,1751295038276,-460.0,0.00018233,2]
[368682111,1751295038286,-460.0,0.00018233,2]
[368682112,1751295038295,-460.0,0.00018233,2]
[368682113,1751295038304,-460.0,0.00018233,2]
[368682114,1751295038313,-460.0,0.00018233,2]
[368682115,1751295038323,-460.0,0.00018233,2]
[368682116,1751295038334,-460.0,0.00018233,2]
[368682117,1751295038343,-468.95,0.00018233,2]
[368682118,1751295038356,-460.0,0.00018233,2]
[368682119,1751295038366,-460.0,0.00018233,2]
[368682120,1751295038376,-460.0,0.00018233,2]
[368682121,1751295038385,-1751.21,0.00018233,2]
[368682122,1751295038396,-460.0,0.00018233,2]
[368682123,1751295038405,-460.0,0.00018233,2]
[368682124,1751295038415,-1925.04,0.00018233,2]
[368682126,1751295038425,-460.0,0.00018233,2]
[368682128,1751295038434,-460.0,0.00018233,2]
[368682130,1751295038443,-460.0,0.00018233,2]
[368682131,1751295038452,-460.0,0.00018233,2]
[368682133,1751295038461,-460.0,0.00018233,2]
[368682135,1751295038471,-492.4,0.00018233,2]
[368682136,1751295038481,-460.0,0.00018233,2]
[368682138,1751295038491,-460.0,0.00018233,2]
[368682139,1751295038500,-460.0,0.00018233,2]
[368682140,1751295038510,-460.0,0.00018233,2]
[368682141,1751295038519,-745.08,0.00018233,2]
[368682142,1751295038528,-460.0,0.00018233,2]
[368682143,1751295038538,-460.0,0.00018233,2]
[368682144,1751295038547,-460.0,0.00018233,2]
[368682145,1751295038556,-460.0,0.00018233,2]
[368682146,1751295038565,-880.56,0.00018233,2]
[368682147,1751295038575,-460.0,0.00018233,2]
[368682148,1751295038584,-460.0,0.00018233,2]
[368682149,1751295038593,-460.0,0.00018233,2]
[368682150,1751295038602,-460.0,0.00018234,2]
[368682151,1751295038611,-460.0,0.00018234,2]
[368682152,1751295038621,-460.0,0.00018234,2]
[368682153,1751295038631,-460.0,0.00018234,2]
[368682154,1751295038640,-460.0,0.00018234,2]
[368682155,1751295038649,-500.0,0.00018234,2]
[368682156,1751295038658,-460.0,0.00018234,2]
[368682157,1751295038668,-212.22395648,0.00018234,2]
[368682158,1751295038678,-460.0,0.00018234,2]
[368682159,1751295038689,-460.0,0.00018234,2]
[368682160,1751295038699,-460.0,0.00018234,2]
[368682161,1751295038709,-460.0,0.00018234,2]
[368682162,1751295038718,-460.0,0.00018234,2]
[368682163,1751295038728,-460.0,0.00018234,2]
[368682164,1751295038740,-460.0,0.00018234,2]
[368682165,1751295038750,-928.96,0.00018234,2]
[368682166,1751295038759,-597.92,0.00018234,2]
[368682167,1751295038769,-460.0,0.00018234,2]
[368682168,1751295038779,-460.0,0.00018234,2]
[368682169,1751295038788,-500.07,0.00018234,2]
[368682170,1751295038799,-460.0,0.00018234,2]
[368682171,1751295038808,-460.0,0.00018234,2]
[368682172,1751295038819,-460.0,0.00018234,2]
[368682173,1751295039040,-460.0,0.00018234,2]
[368682174,1751295039050,-1588.63,0.00018234,2]
[368682175,1751295039060,-500.0,0.00018234,2]
[368682176,1751295039069,-500.0,0.00018234,2]
[368682177,1751295039079,-460.0,0.00018234,2]
[368682178,1751295039088,-460.0,0.00018234,2]
[368682179,1751295039098,-460.0,0.00018234,2]
[368682180,1751295039108,-460.0,0.00018234,2]
[368682181,1751295039118,-460.0,0.00018234,2]
[368682182,1751295039128,-975.31,0.00018234,2]
[368682183,1751295039138,-460.0,0.00018234,2]
[368682184,1751295039147,-460.0,0.00018234,2]
[368682185,1751295039157,-460.0,0.00018234,2]
[368682186,1751295039167,-2489.81,0.00018234,2]
[368682187,1751295039176,-460.0,0.00018234,2]
[368682188,1751295039185,-460.0,0.00018235,2]
[368682189,1751295039195,-460.0,0.00018235,2]
[368682190,1751295039204,-460.0,0.00018235,2]
[368682191,1751295039212,-460.0,0.00018235,2]
[368682192,1751295039221,-460.0,0.00018235,2]
[368682193,1751295039230,-500.0,0.00018235,2]
[368682194,1751295039239,-460.0,0.00018235,2]
[368682195,1751295039249,-460.0,0.00018235,2]
[368682196,1751295039259,-500.0,0.00018235,2]
[368682197,1751295039268,-460.0,0.00018235,2]
[368682198,1751295039278,-460.0,0.00018235,2]
[368682199,1751295039288,-460.0,0.00018235,2]
[368682200,1751295039297,-460.0,0.00018236,2]
[368682201,1751295039309,-460.0,0.00018236,2]
[368682202,1751295039318,-342.81463594,0.00018236,2]
[368682203,1751295039328,-460.0,0.00018236,2]
[368682204,1751295039337,-460.0,0.00018236,2]
[368682205,1751295039346,-460.0,0.00018236,2]
[368682206,1751295039359,-460.0,0.00018236,2]
[368682207,1751295039369,-500.0,0.00018236,2]
[368682208,1751295039379,-500.0,0.00018236,2]
[368682209,1751295039388,-460.0,0.00018236,2]
[368682210,1751295039399,-500.0,0.00018237,2]
[368682211,1751295039408,-447.8459424,0.00018238,2]
[368682212,1751295039417,-1665.7,0.00018405,2]
[368682213,1751295039429,-460.0,0.00018506,2]
[368682214,1751295039438,-460.0,0.00018506,2]
[368682215,1751295039447,-1632.9,0.00018506,2]
[368682216,1751295039457,-460.0,0.00018506,2]
[368682217,1751295039467,-460.0,0.00018506,2]
[368682218,1751295039476,-1488.37,0.00018506,2]
[368682219,1751295039486,-460.0,0.00018506,2]
[368682220,1751295039495,-1271.37,0.00018506,2]
[368682221,1751295039505,-2582.23,0.00018506,2]
[368682222,1751295039515,-460.0,0.00018506,2]
[368682223,1751295039526,-450.32595049,0.00018506,2]
[368682224,1751295039536,-460.0,0.00018506,2]
[368682225,1751295039547,-688.78,0.00018506,2]
[368682226,1751295039557,-819.55,0.00018506,2]
[368682227,1751295039567,-460.0,0.00018506,2]
[368682228,1751295039576,-460.0,0.00018506,2]
[368682229,1751295039586,-869.98,0.00018506,2]
[368682230,1751295039596,-460.0,0.00018506,2]
[368682231,1751295039605,-460.0,0.00018506,2]
[368682232,1751295039614,-460.0,0.00018506,2]
[368682233,1751295039625,-460.0,0.00018507,2]
[368682234,1751295039635,-460.0,0.00018507,2]
[368682235,1751295039645,-460.0,0.00018507,2]
[368682236,1751295039654,-460.0,0.00018507,2]
[368682237,1751295039664,-460.0,0.00018507,2]
[368682238,1751295039673,-460.0,0.00018507,2]
[368682239,1751295039683,-460.0,0.00018507,2]
[368682240,1751295039692,-460.0,0.00018507,2]
[368682241,1751295039702,-460.0,0.00018507,2]
[368682242,1751295039711,-468.95,0.00018507,2]
[368682243,1751295039721,-460.0,0.00018507,2]
[368682244,1751295039730,-1751.21,0.00018507,2]
[368682245,1751295039739,-460.0,0.00018507,2]
[368682246,1751295039748,-1925.04,0.00018507,2]
[368682247,1751295039758,-460.0,0.00018507,2]
[368682248,1751295039767,-460.0,0.00018507,2]
[368682249,1751295039777,-460.0,0.00018507,2]
[368682250,1751295039787,-460.0,0.00018507,2]
[368682251,1751295039797,-492.4,0.00018507,2]
[368682252,1751295039807,-460.0,0.00018507,2]
[368682253,1751295039826,-745.08,0.00018507,2]
[368682254,1751295039838,-460.0,0.00018507,2]
[368682255,1751295039848,-460.0,0.00018507,2]
[368682257,1751295039858,-880.56,0.00018507,2]
[368682259,1751295039868,-460.0,0.00018507,2]
[368682261,1751295039878,-460.0,0.00018507,2]
[368682263,1751295039888,-460.0,0.00018507,2]
[368682264,1751295039898,-206.62895493,0.00018507,2]
[368682265,1751295039908,-170.10215713,0.00018507,2]
[368682266,1751295039918,-287.13924795,0.00018507,2]
[368682267,1751295039927,-500.0,0.00018507,2]
[368682268,1751295039937,-460.0,0.00018508,2]
[368682269,1751295039946,-460.0,0.00018508,2]
[368682270,1751295039957,-348.94455598,0.00018508,2]
[368682271,1751295039967,-460.0,0.00018508,2]
[368682272,1751295039977,-460.0,0.00018508,2]
[368682273,1751295039987,-460.0,0.00018508,2]
[368682274,1751295039997,-460.0,0.00018508,2]
[368682275,1751295040007,-928.96,0.00018508,2]
[368682276,1751295040017,-460.0,0.00018508,2]
[368682277,1751295040027,-500.07,0.00018508,2]
[368682278,1751295040037,-460.0,0.00018508,2]
[368682279,1751295040047,-460.0,0.00018508,2]
[368682280,1751295040056,-460.0,0.00018508,2]
[368682281,1751295040066,-1588.63,0.00018508,2]
[368682282,1751295040075,-460.0,0.00018508,2]
[368682283,1751295040085,-460.0,0.00018508,2]
[368682284,1751295040094,-460.0,0.00018508,2]
[368682285,1751295040104,-460.0,0.00018508,2]
[368682286,1751295040114,-975.31,0.00018508,2]
[368682287,1751295040124,-460.0,0.00018508,2]
[368682289,1751295040133,-460.0,0.00018508,2]
[368682291,1751295040143,-460.0,0.00018508,2]
[368682292,1751295040152,-2489.81,0.00018508,2]
[368682293,1751295040162,-460.0,0.00018509,2]
[368682294,1751295040172,-460.0,0.00018509,2]
[368682295,1751295040181,-460.0,0.00018509,2]
[368682296,1751295040191,-460.0,0.00018509,2]
[368682297,1751295040203,-500.0,0.00018509,2]
[368682298,1751295040213,-500.0,0.00018509,2]
[368682299,1751295040224,-460.0,0.00018509,2]
[368682300,1751295040234,-460.0,0.00018509,2]
[368682301,1751295040245,-460.0,0.00018509,2]
[368682302,1751295040255,-460.0,0.0001851,2]
[368682303,1751295040264,-460.0,0.0001851,2]
[368682304,1751295040273,-460.0,0.0001851,2]
[368682305,1751295040283,-460.0,0.0001851,2]
[368682306,1751295040294,-460.0,0.0001851,2]
[368682307,1751295040303,-500.0,0.0001851,2]
[368682308,1751295040314,-460.0,0.0001851,2]
[368682309,1751295040324,-500.0,0.00018511,2]
[368682310,1751295040333,-1665.7,0.00018679,2]
[368682311,1751295040342,-460.0,0.0001878,2]
[368682312,1751295040352,-1632.9,0.0001878,2]
[368682313,1751295040363,-460.0,0.0001878,2]
[368682314,1751295040373,-460.0,0.0001878,2]
[368682315,1751295040383,-1488.37,0.0001878,2]
[368682316,1751295040392,-460.0,0.0001878,2]
[368682317,1751295040403,-1271.37,0.0001878,2]
[368682318,1751295040413,-2582.23,0.0001878,2]
[368682319,1751295040422,-460.0,0.0001878,2]
[368682320,1751295040432,-460.0,0.0001878,2]
[368682321,1751295040442,-688.78,0.0001878,2]
[368682322,1751295040452,-819.55,0.0001878,2]
[368682323,1751295040462,-460.0,0.0001878,2]
[368682324,1751295040472,-460.0,0.0001878,2]
[368682325,1751295040482,-869.98,0.0001878,2]
[368682326,1751295040492,-460.0,0.0001878,2]
[368682327,1751295040501,-460.0,0.0001878,2]
[368682328,1751295040511,-460.0,0.00018781,2]
[368682329,1751295040522,-460.0,0.00018781,2]
[368682330,1751295040531,-460.0,0.00018781,2]
[368682331,1751295040541,-460.0,0.00018781,2]
[368682332,1751295040550,-460.0,0.00018781,2]
[368682333,1751295040560,-460.0,0.00018781,2]
[368682334,1751295040569,-460.0,0.00018781,2]
[368682335,1751295040584,-460.0,0.00018781,2]
[368682336,1751295040595,-468.95,0.00018781,2]
[368682337,1751295040605,-460.0,0.00018781,2]
[368682338,1751295040614,-1751.21,0.00018781,2]
[368682339,1751295040624,-460.0,0.00018781,2]
[368682340,1751295040633,-1925.04,0.00018781,2]
[368682341,1751295040643,-460.0,0.00018781,2]
[368682342,1751295040652,-460.0,0.00018781,2]
[368682343,1751295040662,-460.0,0.00018781,2]
[368682344,1751295040671,-460.0,0.00018781,2]
[368682345,1751295040681,-492.4,0.00018781,2]
[368682346,1751295040691,-460.0,0.00018781,2]
[368682347,1751295040700,-745.08,0.00018781,2]
[368682348,1751295040715,-460.0,0.00018781,2]
[368682349,1751295040725,-460.0,0.00018781,2]
[368682350,1751295040734,-880.56,0.00018781,2]
[368682351,1751295040744,-460.0,0.00018781,2]